[Event "Bangabandhu Premier Div League 2023-24"]
[Site "Dhaka"]
[Date "2024.02.03"]
[Round "3.3"]
[White "Harikrishnan.A.Ra"]
[Black "Narayanan, Srinath"]
[Result "1/2-1/2"]
[ECO "D78"]
[WhiteElo "2454"]
[BlackElo "2552"]
[Annotator "RC"]
[PlyCount "104"]
[EventDate "2024.02.01"]
[EventCountry "BAN"]
[SourceTitle "playchess.com"]
[Source "ChessBase"]
[SourceQuality "1"]
[TimeControl "40/5400+30:1800+30"]

1. Nf3 {[%emt 0:00:16]} d5 {[%emt 0:00:14]} 2. g3 {[%emt 0:00:05]} g6 {[%emt 0:00:34]} 3. c4 {[%emt 0:00:14]} c6 {[%emt 0:02:44]} 4. Qa4 {[%emt 0:00:05]} dxc4 {[%emt 0:01:39]} 5. Qxc4 {[%emt 0:00:07]} Bg7 {[%emt 0:00:10]} 6. Bg2 {[%emt 0:00:44]} Nf6 {[%emt 0:00:08]} 7. O-O {[%emt 0:00:21]} O-O {[%emt 0:00:06]} 8. Nc3 {[%emt 0:03:00]} Nbd7 {[%emt 0:04:57]} 9. d4 {[%emt 0:01:01]} Qa5 {[%emt 0:06:48]} 10. e4 {[%emt 0:17:45]} e5 {[%emt 0:03:57]} 11. dxe5 {[%emt 0:06:54]} Nxe5 {[%emt 0:00:24]} 12. Nxe5 {[%emt 0:00:07]} Qxe5 {[%emt 0:00:06]} 13. f4 {[%emt 0:05:12]} Qa5 {[%emt 0:03:14]} 14. h3 {[%emt 0:17:02]} Nd7 {[%emt 0:04:03]} 15. Be3 {[%emt 0:08:57]} Nb6 {[%emt 0:05:20]} 16. Qc5 {[%emt 0:01:22]} Qxc5 {[%emt 0:03:35]} 17. Bxc5 {[%emt 0:00:08]} Re8 {[%emt 0:00:12]} 18. e5 {[%emt 0:14:40]} f6 {[%emt 0:01:21]} 19. exf6 {[%emt 0:06:24]} Bxf6 {[%emt 0:00:11]} 20. Rae1 {[%emt 0:00:50]} Bf5 {[%emt 0:10:03]} 21. g4 {[%emt 0:01:09]} Bc2 {[%emt 0:02:46]} 22. Rxe8+ {[%emt 0:03:14]} Rxe8 {[%emt 0:00:02]} 23. Rc1 {[%emt 0:00:08]} Bd3 {[%emt 0:10:40]} 24. Rd1 {[%emt 0:00:02]} Ba6 {[%emt 0:00:26]} 25. Bd4 {[%emt 0:01:17]} Bh4 {[%emt 0:03:15]} 26. Bf2 {[%emt 0:01:50]} Bf6 {[%emt 0:01:43]} 27. Ne4 {[%emt 0:03:15]} Bxb2 {[%emt 0:02:40]} 28. Nc5 {[%emt 0:00:13]} Be2 {[%emt 0:01:59]} 29. Rb1 {[%emt 0:01:03]} Bc3 {[%emt 0:01:54]} 30. Nxb7 {[%emt 0:01:03]} Bd2 {[%emt 0:00:08]} 31. f5 {[%emt 0:02:23]} Bf4 {[%emt 0:06:07]} 32. fxg6 {[%emt 0:01:00]} hxg6 {[%emt 0:00:08]} 33. Bxc6 {[%emt 0:01:09]} Rc8 {[%emt 0:00:16]} 34. Be4 {[%emt 0:00:27]} Rc3 {[%emt 0:00:33]} 35. Re1 {[%emt 0:02:48]} Bd3 {[%emt 0:10:56]} 36. Bxd3 {[%emt 0:01:34]} Rxd3 {[%emt 0:00:01]} 37. Kg2 {[%emt 0:00:18]} Rd2 {[%emt 0:00:21]} 38. Kf3 {[%emt 0:00:38]} Nd5 {[%emt 0:04:28]} 39. Re2 {[%emt 0:00:42]} Rxe2 {[%emt 0:00:42]} 40. Kxe2 {[%emt 0:00:03]} Nc3+ {[%emt 0:00:05]} 41. Kd3 {[%emt 0:05:20]} Nxa2 {[%emt 0:00:11]} 42. Bxa7 {[%emt 0:00:07]} Bh6 {[%emt 0:08:20]} 43. Bc5 {[%emt 0:04:51]} Nc1+ {[%emt 0:02:29]} 44. Ke4 {[%emt 0:00:19]} Ne2 {[%emt 0:00:07]} 45. Bb4 {[%emt 0:01:09]} Bg5 {[%emt 0:03:59]} 46. Be1 {[%emt 0:01:41]} Nf4 {[%emt 0:29:28]} 47. h4 {[%emt 0:00:42]} Ng2 {[%emt 0:00:00]} 48. hxg5 {[%emt 0:00:12]} Nxe1 {[%emt 0:00:00]} 49. Nd8 {[%emt 0:08:44]} Nc2 {[%emt 0:00:00]} 50. Nc6 {[%emt 0:00:07]} Na3 {[%emt 0:00:00]} 51. Kd5 {[%emt 0:02:30]} Nc2 {[%emt 0:00:00]} 52. Ke6 {[%emt 0:05:34]} Kg7 {[%emt 0:00:00]} 1/2-1/2

[Event "Bangabandhu Premier Div League 2023-24"]
[Site "Dhaka"]
[Date "2024.02.03"]
[Round "3.4"]
[White "Subrota, Biswas"]
[Black "Rahman, Ziaur"]
[Result "1/2-1/2"]
[ECO "B42"]
[WhiteElo "2223"]
[BlackElo "2428"]
[Annotator "RC"]
[PlyCount "109"]
[EventDate "2024.02.01"]
[EventCountry "BAN"]
[SourceTitle "playchess.com"]
[Source "ChessBase"]
[SourceQuality "1"]
[TimeControl "40/5400+30:1800+30"]

1. e4 {[%emt 0:00:11]} c5 {[%emt 0:01:24]} 2. Nf3 {[%emt 0:00:05]} e6 {[%emt 0:01:36]} 3. d4 {[%emt 0:00:09]} cxd4 {[%emt 0:00:26]} 4. Nxd4 {[%emt 0:00:05]} a6 {[%emt 0:00:26]} 5. Bd3 {[%emt 0:01:10]} Bc5 {[%emt 0:00:21]} 6. Nb3 {[%emt 0:00:34]} Ba7 {[%emt 0:00:06]} 7. Qe2 {[%emt 0:00:24]} Ne7 {[%emt 0:00:31]} 8. Be3 {[%emt 0:01:43]} O-O {[%emt 0:00:21]} 9. O-O {[%emt 0:05:52]} Nbc6 {[%emt 1:29:49]} 10. Bxa7 {[%emt 0:04:05]} Rxa7 {[%emt 0:00:30]} 11. Qe3 {[%emt 1:21:42]} d6 {[%emt 0:00:30]} 12. c4 {[%emt 0:00:30]} b6 {[%emt 0:00:30]} 13. Nc3 {[%emt 0:00:30]} Nb4 {[%emt 0:00:30]} 14. Rad1 {[%emt 0:00:00]} Rd7 {[%emt 0:00:30]} 15. Bb1 {[%emt 0:01:00]} Bb7 {[%emt 0:00:30]} 16. f4 {[%emt 0:00:00]} Qc7 {[%emt 0:00:00]} 17. a3 {[%emt 0:00:00]} Nbc6 {[%emt 0:01:00]} 18. Rc1 {[%emt 0:00:00]} Qd8 {[%emt 0:00:30]} 19. Rfd1 {[%emt 0:02:00]} Na5 {[%emt 0:00:30]} 20. Nxa5 {[%emt 0:00:00]} bxa5 {[%emt 0:00:30]} 21. Na4 {[%emt 0:00:00]} Qc7 {[%emt 0:00:00]} 22. Nb6 {[%emt 0:00:00]} Rdd8 {[%emt 0:01:00]} 23. b4 {[%emt 0:00:00]} axb4 {[%emt 0:00:00]} 24. axb4 {[%emt 0:02:30]} Qc6 {[%emt 0:00:00]} 25. b5 {[%emt 0:00:30]} Qc7 {[%emt 0:01:30]} 26. Na4 {[%emt 0:00:30]} Ng6 {[%emt 0:00:30]} 27. g3 {[%emt 0:00:30]} axb5 {[%emt 0:00:00]} 28. cxb5 {[%emt 0:00:00]} Qa5 {[%emt 0:01:00]} 29. Qb6 {[%emt 0:00:00]} Qxa4 {[%emt 0:00:00]} 30. Qxb7 {[%emt 0:01:30]} Rb8 {[%emt 0:00:00]} 31. Qa6 {[%emt 0:00:30]} Qb3 {[%emt 0:01:30]} 32. Bd3 {[%emt 0:00:30]} Rfd8 {[%emt 0:00:00]} 33. Rb1 {[%emt 0:00:30]} Qc3 {[%emt 0:01:00]} 34. b6 {[%emt 0:00:00]} Qd4+ {[%emt 0:00:00]} 35. Kh1 {[%emt 0:00:00]} h5 {[%emt 0:00:00]} 36. Qc4 {[%emt 0:00:00]} Qe3 {[%emt 0:01:30]} 37. Re1 {[%emt 0:02:00]} Qf3+ {[%emt 0:00:00]} 38. Kg1 {[%emt 0:00:30]} h4 {[%emt 0:01:00]} 39. Rf1 {[%emt 0:00:00]} Qe3+ {[%emt 0:00:00]} 40. Kg2 {[%emt 0:00:00]} Rxb6 {[%emt 0:00:00]} 41. Rxb6 {[%emt 0:01:09]} Qxb6 {[%emt 0:31:30]} 42. e5 {[%emt 0:30:51]} d5 {[%emt 0:00:30]} 43. Qc2 {[%emt 0:00:30]} Ne7 {[%emt 0:00:30]} 44. gxh4 {[%emt 0:00:30]} g6 {[%emt 0:00:30]} 45. h5 {[%emt 0:00:30]} Nf5 {[%emt 0:00:00]} 46. Bxf5 {[%emt 0:00:00]} gxf5 {[%emt 0:00:00]} 47. Rf3 {[%emt 0:00:00]} Kh7 {[%emt 0:01:30]} 48. Rg3 {[%emt 0:01:30]} Rb8 {[%emt 0:00:00]} 49. Kh3 {[%emt 0:00:00]} Qb1 {[%emt 0:01:00]} 50. Qg2 {[%emt 0:01:00]} Qe4 {[%emt 0:00:30]} 51. Rg7+ {[%emt 0:00:00]} Kh8 {[%emt 0:00:00]} 52. Qg3 {[%emt 0:01:00]} Rb3 {[%emt 0:00:00]} 53. Qxb3 {[%emt 0:00:00]} Kxg7 {[%emt 0:00:00]} 54. Qg3+ {[%emt 0:01:00]} Kh7 {[%emt 0:00:00]} 55. h6 {[%emt 0:00:00]} 1/2-1/2

[Event "Bangabandhu Premier Div League 2023-24"]
[Site "Dhaka"]
[Date "2024.02.03"]
[Round "3.4"]
[White "Nayem, Haque"]
[Black "Asif, Mahmud"]
[Result "1-0"]
[ECO "C90"]
[WhiteElo "2092"]
[BlackElo "1906"]
[Annotator "NA RC"]
[PlyCount "115"]
[EventDate "2024.02.01"]
[EventCountry "BAN"]
[SourceTitle "playchess.com"]
[Source "ChessBase"]
[SourceQuality "1"]
[TimeControl "40/5400+30:1800+30"]

1. e4 {[%emt 0:00:03]} e5 {[%emt 0:00:16]} 2. Nf3 {[%emt 0:00:04]} Nc6 {[%emt 0:00:15]} 3. Bb5 {[%emt 0:00:28]} a6 {[%emt 0:00:24]} 4. Ba4 {[%emt 0:00:26]} Nf6 {[%emt 0:00:12]} 5. d3 {[%emt 0:00:28]} b5 {[%emt 0:03:04]} 6. Bb3 {[%emt 0:00:02]} Be7 {[%emt 0:07:39]} 7. O-O {[%emt 0:02:33]} d6 {[%emt 0:00:45]} 8. c3 {[%emt 0:02:54]} Na5 {[%emt 0:07:29]} 9. Bc2 {[%emt 0:00:11]} c5 {[%emt 0:00:12]} 10. Re1 {[%emt 0:03:52]} O-O {[%emt 0:02:31]} 11. d4 {[%emt 0:03:18] C90: Closed Ruy Lopez with 7...d6: Early deviations.} Qc7 {[%emt 0:07:26] 11...cxd4 is the hot move.} 12. d5 {[%emt 0:00:57]} Bg4 {[%emt 0:04:08]} 13. h3 {[%emt 0:00:29]} Bh5 {[%emt 0:01:51]} 14. Nbd2 {[%emt 0:00:19]} c4 $146 {[%emt 0:03:49]} ({Predecessor:} 14... Rfc8 15. Qe2 Rab8 16. b3 Rb6 17. Nf1 b4 18. c4 Qd8 19. Ng3 Bxf3 20. Qxf3 g6 {½-½ Kersic,M (2166)-Miele,R (1890) Nova Gorica op-B 14th 2009 (9)}) 15. Nf1 {[%emt 0:00:54]} Rfe8 {[%emt 0:04:11]} 16. Ng3 {[%emt 0:03:08]} Bg6 {[%emt 0:00:14]} 17. Nh4 {[%emt 0:01:57]} Nb7 {[%emt 0:02:34]} 18. Nhf5 {[%emt 0:00:37]} Bf8 {[%emt 0:07:54]} 19. Qf3 {[%emt 0:03:11]} Nc5 {[%emt 0:07:52]} 20. Bg5 {[%emt 0:01:30]} Ncd7 {[%emt 0:01:35]} 21. Kh2 {[%emt 0:35:08]} a5 {[%emt 0:05:39]} 22. Rad1 {[%emt 0:03:37]} Reb8 {[%emt 0:03:38]} 23. Re2 {[%emt 0:00:28]} Rc8 {[%emt 0:04:17]} 24. Kg1 {[%emt 0:02:23]} Rab8 {[%emt 0:00:50]} 25. Kh2 {[%emt 0:00:14]} Ra8 {[%emt 0:00:09]} 26. Rc1 {[%emt 0:01:44]} a4 {[%emt 0:04:09]} 27. a3 {[%emt 0:01:07]} Rab8 {[%emt 0:01:50]} 28. Re3 {[%emt 0:05:45]} Re8 {[%emt 0:02:47]} 29. Rg1 {[%emt 0:01:25]} Ra8 {[%emt 0:01:22]} 30. Rf1 {[%emt 0:02:17]} Rab8 {[%emt 0:00:22]} 31. Ra1 {[%emt 0:07:01]} Ra8 {[%emt 0:01:33]} 32. Rb1 {[%emt 0:00:14]} Rab8 {[%emt 0:01:34]} 33. Rh1 {[%emt 0:00:03]} Ra8 {[%emt 0:00:17]} 34. Kg1 {[%emt 0:00:05]} Rab8 {[%emt 0:05:25]} 35. Re1 {[%emt 0:03:59]} Ra8 {[%emt 0:01:32]} 36. Re2 {[%emt 0:01:09]} Rab8 {[%emt 0:00:17]} 37. Bb1 {[%emt 0:04:43]} Ra8 {[%emt 0:00:30]} 38. Bc2 {[%emt 0:01:05]} Rab8 {[%emt 0:00:08]} 39. Bd1 {[%emt 0:03:57]} Qb6 {[%emt 0:04:40]} 40. Be3 {[%emt 0:01:17]} Qc7 {[%emt 0:00:08]} 41. Bg5 {[%emt 0:30:06]} Qb6 {[%emt 0:30:37]} 42. Bc2 {[%emt 0:03:11]} Ra8 {[%emt 0:01:45]} 43. Nf1 {[%emt 0:03:08]} Bxf5 {[%emt 0:03:32]} 44. Qxf5 {[%emt 0:00:02]} Be7 {[%emt 0:01:08]} 45. Be3 {[%emt 0:00:00]} Qc7 {[%emt 0:00:00]} 46. g4 {[%emt 0:00:00]} g6 {[%emt 0:00:00]} 47. Qf3 {[%emt 0:00:00]} Bf8 {[%emt 0:00:00]} 48. Ng3 {[%emt 0:00:00]} Bg7 {[%emt 0:00:00]} 49. g5 {[%emt 0:00:00]} Nh5 {[%emt 0:00:00]} 50. Nxh5 {[%emt 0:00:00]} gxh5 $18 {[%emt 0:00:00]} 51. Qxh5 {[%emt 0:00:00]} b4 {[%emt 0:00:00]} 52. cxb4 {[%emt 0:00:00]} c3 {[%emt 0:00:00]} 53. Bc1 {[%emt 0:00:00]} cxb2 {[%emt 0:00:00]} 54. Bxb2 {[%emt 0:00:00]} Nf8 {[%emt 0:00:00]} 55. Bd3 {[%emt 0:00:00]} Ng6 {[%emt 0:00:00]} 56. Rc2 {[%emt 0:00:00]} Qe7 {[%emt 0:00:00]} 57. Qg4 {[%emt 0:00:00]} Nf4 {[%emt 0:00:00]} 58. Bb5 {[%emt 0:00:00]} 1-0

[Event "Bangabandhu Premier Div League 2023-24"]
[Site "Dhaka"]
[Date "2024.02.03"]
[Round "3.5"]
[White "Hossain, Enamul"]
[Black "Mohammad Minhaz Uddin"]
[Result "0-1"]
[ECO "C21"]
[WhiteElo "2372"]
[BlackElo "2224"]
[Annotator "RC"]
[PlyCount "44"]
[EventDate "2024.02.01"]
[EventCountry "BAN"]
[SourceTitle "playchess.com"]
[Source "ChessBase"]
[SourceQuality "1"]
[TimeControl "40/5400+30:1800+30"]

1. e4 {[%emt 0:00:05]} e5 {[%emt 0:02:28]} 2. d4 {[%emt 0:00:45]} Nf6 {[%emt 0:00:52]} 3. dxe5 {[%emt 0:01:12]} Nxe4 {[%emt 0:00:05]} 4. Qe2 {[%emt 0:01:39]} Nc5 {[%emt 0:00:19]} 5. Nc3 {[%emt 0:00:34]} Ne6 {[%emt 0:05:13]} 6. f4 {[%emt 0:03:13]} g6 {[%emt 0:08:45]} 7. Be3 {[%emt 0:04:55]} d5 {[%emt 0:05:03]} 8. exd6 {[%emt 0:07:06]} Qxd6 {[%emt 0:00:13]} 9. Rd1 {[%emt 0:00:46]} Qb4 {[%emt 0:01:38]} 10. Bd4 {[%emt 0:02:04]} Rg8 {[%emt 0:00:09]} 11. a3 {[%emt 0:03:42]} Qa5 {[%emt 0:00:08]} 12. b4 {[%emt 1:10:29]} Qxa3 {[%emt 0:04:55]} 13. Nd5 {[%emt 0:00:00]} Bxb4+ {[%emt 1:07:12]} 14. Kf2 {[%emt 0:00:00]} Bc5 {[%emt 0:00:00]} 15. Qb5+ {[%emt 0:00:00]} Nd7 {[%emt 0:00:00]} 16. Bxc5 {[%emt 0:02:00]} Nexc5 {[%emt 0:00:00]} 17. Qe2+ {[%emt 0:00:00]} Kf8 {[%emt 0:00:00]} 18. Nxc7 {[%emt 0:00:00]} Nf6 {[%emt 0:00:00]} 19. g3 {[%emt 0:00:24]} Ng4+ {[%emt 0:00:00]} 20. Kg2 {[%emt 0:00:59]} Ne3+ {[%emt 0:00:00]} 21. Qxe3 {[%emt 0:00:35]} Qxe3 {[%emt 0:00:00]} 22. Nxa8 {[%emt 0:00:12]} Ne4 {[%emt 0:00:00]} 0-1

[Event "Bangabandhu Premier Div League 2023-24"]
[Site "Dhaka"]
[Date "2024.02.03"]
[Round "3.5"]
[White "Nasim Hossain, Bhuiyan"]
[Black "Alekhya Mukhopadhyay"]
[Result "0-1"]
[ECO "A48"]
[WhiteElo "1812"]
[BlackElo "2184"]
[Annotator "RC"]
[PlyCount "86"]
[EventDate "2024.02.01"]
[EventCountry "BAN"]
[SourceTitle "playchess.com"]
[Source "ChessBase"]
[SourceQuality "1"]
[TimeControl "40/5400+30:1800+30"]

1. d4 {[%emt 0:05:41]} Nf6 {[%emt 0:00:08]} 2. Bf4 {[%emt 0:00:16]} g6 {[%emt 0:00:08]} 3. e3 {[%emt 0:00:30]} Bg7 {[%emt 0:00:05]} 4. Nf3 {[%emt 0:00:10]} O-O {[%emt 0:00:11]} 5. h3 {[%emt 0:00:11]} d6 {[%emt 0:00:11]} 6. Bc4 {[%emt 0:01:02]} Nc6 {[%emt 0:06:55]} 7. O-O {[%emt 0:00:25]} Nd7 {[%emt 0:00:16]} 8. c3 {[%emt 0:04:15]} e5 {[%emt 0:03:09]} 9. Bg5 {[%emt 0:00:46]} Qe8 {[%emt 0:02:04]} 10. d5 {[%emt 0:02:47]} Ne7 {[%emt 0:00:43]} 11. e4 {[%emt 0:01:55]} h6 {[%emt 0:00:23]} 12. Bxe7 {[%emt 0:04:16]} Qxe7 {[%emt 0:00:04]} 13. Nbd2 {[%emt 0:01:20]} f5 {[%emt 0:00:27]} 14. Nh2 {[%emt 0:00:55]} Nf6 {[%emt 0:00:41]} 15. Qe2 {[%emt 0:02:36]} Nh5 {[%emt 0:02:46]} 16. exf5 {[%emt 0:01:50]} Nf4 {[%emt 0:00:37]} 17. Qe3 {[%emt 0:03:58]} Qg5 {[%emt 0:01:58]} 18. Qg3 {[%emt 0:14:15]} gxf5 {[%emt 0:02:24]} 19. Qxg5 {[%emt 0:07:45]} hxg5 {[%emt 0:00:03]} 20. Nhf3 {[%emt 0:00:29]} Bf6 {[%emt 0:01:02]} 21. Kh2 {[%emt 0:02:51]} Bd7 {[%emt 0:03:18]} 22. g3 {[%emt 0:01:11]} Ng6 {[%emt 0:00:56]} 23. Rae1 {[%emt 0:01:31]} Kg7 {[%emt 0:01:08]} 24. Rh1 {[%emt 0:41:35]} c5 {[%emt 0:05:38]} 25. Bf1 {[%emt 0:00:00]} b5 {[%emt 0:01:07]} 26. Bg2 {[%emt 0:00:00]} a5 {[%emt 0:16:17]} 27. Nf1 {[%emt 0:00:00]} b4 {[%emt 0:03:00]} 28. N3d2 {[%emt 0:00:00]} e4 {[%emt 0:05:10]} 29. cxb4 {[%emt 0:00:00]} axb4 {[%emt 0:00:23]} 30. Nc4 {[%emt 0:00:00]} Rxa2 {[%emt 0:00:41]} 31. Nxd6 {[%emt 0:00:00]} Rxb2 {[%emt 0:00:15]} 32. Ne3 {[%emt 0:00:00]} Be5 {[%emt 0:00:51]} 33. Nd1 {[%emt 0:00:00]} Rc2 {[%emt 0:00:32]} 34. Nxe4 {[%emt 0:00:00]} fxe4 {[%emt 0:02:15]} 35. Bxe4 {[%emt 0:00:00]} Bf5 {[%emt 0:01:49]} 36. Bxf5 {[%emt 0:00:00]} Rxf5 {[%emt 0:00:07]} 37. Kg2 {[%emt 0:00:00]} Bd4 {[%emt 0:00:19]} 38. Rhf1 {[%emt 0:00:00]} Rxd5 {[%emt 0:00:04]} 39. Re6 {[%emt 0:00:00]} b3 {[%emt 0:00:24]} 40. Rb6 {[%emt 0:00:00]} b2 {[%emt 0:00:10]} 41. Rb7+ {[%emt 0:34:07]} Kh6 {[%emt 0:30:12]} 42. Re1 {[%emt 0:00:00]} Rc1 {[%emt 0:00:00]} 43. Ne3 {[%emt 0:00:00]} Bxe3 {[%emt 0:00:00]} 0-1

[Event "Bangabandhu Premier Div League 2023-24"]
[Site "Dhaka"]
[Date "2024.02.03"]
[Round "3.6"]
[White "Ahmed, Sheikh Nasir"]
[Black "Chigaev, Maksim"]
[Result "0-1"]
[ECO "A21"]
[WhiteElo "2182"]
[BlackElo "2622"]
[Annotator "RC"]
[PlyCount "68"]
[EventDate "2024.02.01"]
[EventCountry "BAN"]
[SourceTitle "playchess.com"]
[Source "ChessBase"]
[SourceQuality "1"]
[TimeControl "40/5400+30:1800+30"]

1. c4 {[%emt 0:00:05]} e5 {[%emt 0:00:10]} 2. Nc3 {[%emt 0:00:47]} Bb4 {[%emt 0:01:53]} 3. Nd5 {[%emt 0:03:09]} a5 {[%emt 0:01:33]} 4. a3 {[%emt 0:01:05]} Be7 {[%emt 0:04:44]} 5. g3 {[%emt 0:09:05]} Nf6 {[%emt 0:01:16]} 6. Nxf6+ {[%emt 0:06:00]} Bxf6 {[%emt 0:00:11]} 7. Bg2 {[%emt 0:00:11]} O-O {[%emt 0:01:53]} 8. d3 {[%emt 0:00:26]} a4 {[%emt 0:05:11]} 9. Nf3 {[%emt 0:01:45]} d6 {[%emt 0:06:47]} 10. Rb1 {[%emt 0:03:59]} Bd7 {[%emt 0:02:02]} 11. O-O {[%emt 0:00:25]} Bc6 {[%emt 0:01:21]} 12. Be3 {[%emt 0:10:30]} Re8 {[%emt 0:12:13]} 13. Nd2 {[%emt 0:02:35]} Bxg2 {[%emt 0:00:24]} 14. Kxg2 {[%emt 0:00:02]} d5 {[%emt 0:00:11]} 15. cxd5 {[%emt 0:00:20]} Qxd5+ {[%emt 0:00:04]} 16. Kg1 {[%emt 0:01:29]} Nd7 {[%emt 0:04:32]} 17. Qc2 {[%emt 0:07:24]} c6 {[%emt 0:54:35]} 18. b4 {[%emt 0:03:20]} b5 {[%emt 0:00:00]} 19. Rfc1 {[%emt 0:02:51]} Rac8 {[%emt 0:00:00]} 20. Ne4 {[%emt 0:07:04]} Be7 {[%emt 0:00:00]} 21. Bc5 {[%emt 0:01:22]} Nxc5 {[%emt 0:00:00]} 22. Nxc5 {[%emt 0:00:13]} h5 {[%emt 0:00:00]} 23. Qd2 {[%emt 0:01:51]} h4 {[%emt 0:00:00]} 24. Qe3 {[%emt 0:36:32]} h3 {[%emt 0:00:00]} 25. f3 {[%emt 0:00:00]} f5 {[%emt 0:00:00]} 26. Qf2 {[%emt 0:00:00]} Bg5 {[%emt 0:00:00]} 27. Rc2 {[%emt 0:01:30]} Rcd8 {[%emt 0:00:00]} 28. e4 {[%emt 0:00:00]} fxe4 {[%emt 0:00:00]} 29. fxe4 {[%emt 0:00:00]} Qd6 {[%emt 0:00:00]} 30. Kh1 {[%emt 0:00:00]} Rf8 {[%emt 0:00:00]} 31. Qe2 {[%emt 0:00:00]} Qf6 {[%emt 0:00:00]} 32. Rg1 {[%emt 0:00:00]} Rd6 {[%emt 0:00:00]} 33. Ra2 {[%emt 0:00:00]} Qf3+ {[%emt 0:00:00]} 34. Qxf3 {[%emt 0:00:00]} Rxf3 {[%emt 0:00:00]} 0-1

[Event "Bangabandhu Premier Div League 2023-24"]
[Site "Dhaka"]
[Date "2024.02.03"]
[Round "3.6"]
[White "Hasan Md, Emam"]
[Black "Mrittika Mallick"]
[Result "0-1"]
[ECO "B11"]
[WhiteElo "2053"]
[BlackElo "1859"]
[Annotator "NA RC"]
[PlyCount "56"]
[EventDate "2024.02.01"]
[EventCountry "BAN"]
[SourceTitle "playchess.com"]
[Source "ChessBase"]
[SourceQuality "1"]
[TimeControl "40/5400+30:1800+30"]

1. e4 {[%emt 0:07:03]} c6 {[%emt 0:00:16]} 2. Nf3 {[%emt 0:00:33]} d5 {[%emt 0:00:10]} 3. Nc3 {[%emt 0:00:03]} dxe4 {[%emt 0:00:57]} 4. Nxe4 {[%emt 0:00:02]} Nf6 {[%emt 0:00:10]} 5. Ng3 {[%emt 0:01:35]} h5 {[%emt 0:01:05]} 6. h3 {[%emt 0:04:17]} h4 {[%emt 0:07:27]} 7. Ne2 {[%emt 0:00:10]} Qb6 {[%emt 0:01:12]} 8. d4 {[%emt 0:00:25]} Bf5 {[%emt 0:04:18]} 9. c3 {[%emt 0:12:41]} Nd5 {[%emt 0:09:22]} ({Black should play} 9... Nbd7 $1 $11) 10. a3 $14 {[%emt 0:04:14]} Na6 {[%emt 0:04:52]} 11. b4 e6 {[%emt 0:06:41]} 12. Bd2 {[%emt 0:12:22]} Bd3 13. Ne5 {[%emt 0:00:00]} Be4 14. Nf4 {[%emt 0:00:28]} f6 {[%emt 0:01:30]} 15. Nf3 {[%emt 0:00:30]} O-O-O {[%emt 0:14:53]} 16. Be2 {[%emt 0:17:53]} e5 {[%emt 0:00:30]} 17. c4 {[%emt 0:00:30]} Bxf3 {[%emt 0:00:30]} 18. Bxf3 {[%emt 0:00:30]} Qxd4 {[%emt 0:00:30]} 19. cxd5 {[%emt 0:00:30]} Qxa1 {[%emt 0:00:30]} 20. dxc6 {[%emt 0:00:30]} Qxa3 {[%emt 0:00:30]} 21. Qc2 {[%emt 0:00:30]} Bxb4 {[%emt 0:00:30]} 22. cxb7+ {[%emt 0:00:30]} Kb8 {[%emt 0:00:30]} 23. Bxb4 {[%emt 0:00:30]} Nxb4 {[%emt 0:17:29]} 24. Qc5 {[%emt 0:18:46]} Nd3+ {[%emt 0:02:05]} 25. Nxd3 {[%emt 0:00:24]} Qxd3 {[%emt 0:00:03]} 26. Qc3 {[%emt 0:01:05]} Rd4 {[%emt 0:00:30]} 27. Rf1 {[%emt 0:00:30]} Rhd8 {[%emt 0:00:30]} 28. Be2 {[%emt 0:00:30]} Re4 {[%emt 0:00:30]} 0-1

[Event "Bangabandhu Premier Div League 2023-24"]
[Site "Dhaka"]
[Date "2024.02.03"]
[Round "3.7"]
[White "Tanvir, Alam"]
[Black "Ankit Ray"]
[Result "0-1"]
[ECO "E11"]
[WhiteElo "1836"]
[BlackElo "1912"]
[Annotator "NA RC"]
[PlyCount "52"]
[EventDate "2024.02.01"]
[EventCountry "BAN"]
[SourceTitle "playchess.com"]
[Source "ChessBase"]
[SourceQuality "1"]
[TimeControl "40/5400+30:1800+30"]

1. d4 {[%emt 0:01:14]} Nf6 {[%emt 0:00:06]} 2. c4 {[%emt 0:00:02]} e6 {[%emt 0:00:07]} 3. Nf3 {[%emt 0:00:07]} Bb4+ {[%emt 0:00:31]} 4. Bd2 {[%emt 0:03:13]} Qe7 {[%emt 0:00:06]} 5. a3 {[%emt 0:01:04]} Bxd2+ {[%emt 0:00:06]} 6. Nbxd2 {[%emt 0:00:03]} d6 {[%emt 0:00:24]} 7. e4 {[%emt 0:01:18]} e5 {[%emt 0:00:09]} 8. Bd3 {[%emt 0:01:39]} a5 {[%emt 0:02:26]} 9. O-O {[%emt 0:00:40]} O-O {[%emt 0:00:09]} 10. Rc1 {[%emt 0:04:56]} Na6 {[%emt 0:09:08]} 11. Re1 {[%emt 0:10:53]} Nh5 $14 {[%emt 0:01:23]} ({Black should try} 11... exd4 $11 12. Nxd4 Bg4) 12. g3 {[%emt 0:13:48]} Bg4 {[%emt 0:03:48]} 13. d5 {[%emt 0:02:43]} Nc5 {[%emt 0:00:47]} 14. Bf1 {[%emt 0:01:42]} a4 {[%emt 0:03:07]} 15. h3 {[%emt 0:00:24]} Bd7 {[%emt 0:00:13]} 16. Nh4 {[%emt 0:01:00]} Nf4 {[%emt 0:11:26]} 17. gxf4 {[%emt 0:03:29]} Qxh4 {[%emt 0:00:31]} 18. f5 {[%emt 0:00:10]} g6 {[%emt 0:00:45]} 19. Qg4 {[%emt 0:10:04]} Qf6 {[%emt 0:00:23]} 20. Qg3 {[%emt 0:01:46]} Kh8 {[%emt 0:00:54]} 21. fxg6 {[%emt 0:00:33]} Rg8 {[%emt 0:03:03]} 22. Kh2 {[%emt 0:03:20]} Rxg6 {[%emt 0:00:15]} 23. Qe3 {[%emt 0:00:29]} Rag8 {[%emt 0:00:49]} 24. Rc3 {[%emt 0:03:48]} Qg7 {[%emt 0:02:43]} 25. Qf3 {[%emt 0:06:20]} Rf6 {[%emt 0:00:18]} 26. Qg3 {[%emt 0:03:35]} Qxg3+ {[%emt 0:00:40]} 0-1